bitfinex-derivatives/quotes_BTCF0:USTF0_20241128
["timestamp","ask_amount","ask_price","bid_price","bid_amount"]
[1732803839411,0.3608,95717.0,95714.0,0.00979536]
[1732803839706,0.3608,95717.0,95716.0,0.052214]
[1732803841105,0.3618,95717.0,95716.0,0.052214]
[1732803841702,0.001,95717.0,95716.0,0.052214]
[1732803842101,0.001,95717.0,95716.0,0.37544877]
[1732803842307,0.09466057,95717.0,95716.0,0.37544877]
[1732803842611,0.005,95717.0,95716.0,0.06300877]
[1732803842798,0.09966057,95717.0,95716.0,0.06300877]
[1732803843006,0.006,95717.0,95716.0,0.02558097]
[1732803843302,0.006,95717.0,95716.0,0.0187862]
[1732803843303,0.12588187,95717.0,95716.0,0.0187862]
[1732803843508,0.15593666,95721.0,95716.0,0.0207862]
[1732803843809,0.12492402,95717.0,95716.0,0.0207862]
[1732803844004,0.12492402,95717.0,95716.0,0.03058112]
[1732803844204,0.12492402,95717.0,95716.0,0.02858112]
[1732803844399,0.12492402,95717.0,95716.0,0.03058112]
[1732803844605,0.052213,95717.0,95716.0,0.03058112]
[1732803844908,0.062213,95717.0,95716.0,0.002]
[1732803845118,0.1129979,95717.0,95716.0,0.002]
[1732803845508,0.1129979,95717.0,95716.0,0.006]
[1732803845912,0.05222,95704.0,95703.0,0.01503309]
[1732803846110,0.05222,95704.0,95696.0,0.00156722]
[1732803846111,0.4115849,95704.0,95696.0,0.00156722]
[1732803846314,0.15619664,95699.0,95696.0,0.01661976]
[1732803846616,0.15619664,95699.0,95693.0,0.02089796]
[1732803847116,0.15619664,95699.0,95696.0,0.052225]
[1732803847711,0.15619664,95699.0,95693.0,0.02089796]
[1732803847712,0.01,95694.0,95693.0,0.002]
[1732803847919,0.11302505,95694.0,95693.0,0.002]
[1732803848113,0.375746,95694.0,95689.0,0.00012397]
[1732803848306,0.3608,95690.0,95680.0,0.01472577]
[1732803848506,0.052235,95678.0,95677.0,0.02089796]
[1732803848705,0.052235,95678.0,95676.0,0.00156756]
[1732803849314,0.0001037,95677.0,95676.0,0.05380256]
[1732803849505,0.0001037,95677.0,95676.0,0.00156756]
[1732803849713,0.0001037,95677.0,95669.0,9.06e-05]
[1732803849714,0.01,95670.0,95669.0,9.06e-05]
[1732803850030,0.423039,95670.0,95669.0,9.06e-05]
[1732803851009,0.423039,95670.0,95657.0,0.0149218]
[1732803851010,0.052241,95666.0,95657.0,0.0149218]
[1732803851222,0.09352861,95659.0,95646.0,0.22964]
[1732803851423,0.3608,95660.0,95646.0,0.052252]
[1732803851716,0.3608,95660.0,95645.0,0.02089796]
[1732803851909,0.3608,95660.0,95646.0,8.292e-05]
[1732803852109,0.3608,95660.0,95655.0,0.052247]
[1732803852314,0.3608,95660.0,95653.0,0.052248]
[1732803852917,0.3608,95660.0,95647.0,0.052251]
[1732803853217,0.3608,95648.0,95646.0,8.292e-05]
[1732803854818,0.3618,95648.0,95646.0,8.292e-05]
[1732803856020,0.052252,95647.0,95646.0,8.292e-05]
[1732803856615,0.052252,95647.0,95646.0,0.00408292]
[1732803857312,0.052252,95647.0,95646.0,8.292e-05]
[1732803857518,0.053252,95647.0,95646.0,0.01108292]
[1732803858927,0.001,95647.0,95646.0,0.06333492]
[1732803859131,0.45432861,95660.0,95659.0,0.052245]
[1732803859424,0.3608,95660.0,95659.0,0.052245]
[1732803860537,0.3608,95660.0,95659.0,0.053245]
[1732803861329,0.3608,95676.0,95674.0,0.052236]
[1732803861516,0.01,95689.0,95676.0,0.052236]
[1732803861717,0.01,95697.0,95677.0,0.45953613]
[1732803861919,0.01,95697.0,95687.0,0.18861613]
[1732803862125,0.3608,95691.0,95687.0,0.18861613]
[1732803862330,0.3608,95691.0,95690.0,0.052228]
[1732803862625,0.3608,95691.0,95687.0,0.18861613]
[1732803862626,0.01,95697.0,95687.0,0.18861613]
[1732803862828,0.3608,95692.0,95687.0,0.18861613]
[1732803863125,0.3608,95692.0,95679.0,0.052234]
[1732803863625,0.008,95689.0,95679.0,0.052234]
[1732803864128,0.3608,95692.0,95662.0,0.22968]
[1732803864129,0.052237,95674.0,95662.0,0.22968]
[1732803864317,0.3608,95669.0,95659.0,0.02091476]
[1732803864520,0.01,95677.0,95667.0,0.03752334]
[1732803864722,0.00843846,95676.0,95674.0,0.052237]
[1732803865127,0.3608,95680.0,95675.0,0.0422]
[1732803865329,0.3608,95680.0,95667.0,0.07472249]
[1732803865530,0.01436644,95679.0,95667.0,0.02248249]
[1732803865828,0.02280493,95679.0,95667.0,0.07472349]
[1732803866028,0.3608,95671.0,95667.0,0.07472349]
[1732803866236,0.3608,95671.0,95667.0,0.03744168]
[1732803866433,0.02280493,95670.0,95667.0,0.00156773]
[1732803866730,0.02280493,95669.0,95667.0,0.00256773]
[1732803866918,0.02280493,95668.0,95667.0,0.00256773]
[1732803867519,0.3608,95680.0,95667.0,0.36840873]
[1732803867520,0.003,95669.0,95667.0,0.36840873]
[1732803867730,0.003,95669.0,95668.0,0.0429]
[1732803868025,0.02374197,95679.0,95668.0,0.0429]
[1732803868229,0.3608,95680.0,95668.0,0.0429]
[1732803868230,0.02374197,95678.0,95668.0,0.0429]
[1732803868431,0.02374197,95677.0,95668.0,0.0429]
[1732803868628,0.02374197,95676.0,95668.0,0.0429]
[1732803868827,0.02374197,95675.0,95668.0,0.0429]
[1732803869025,0.3608,95680.0,95668.0,0.0429]
[1732803869026,0.02346907,95674.0,95668.0,0.0429]
[1732803869223,0.02346907,95674.0,95671.0,0.052238]
[1732803869224,0.00902656,95673.0,95671.0,0.052238]
[1732803869426,0.01444708,95679.0,95672.0,0.344098]
[1732803869727,0.01009728,95700.0,95686.0,0.05223]
[1732803869928,0.3608,95694.0,95678.0,0.3608]
[1732803870128,0.3608,95694.0,95680.0,0.18861613]
[1732803870634,0.3608,95694.0,95682.0,0.052232]
[1732803871237,0.3608,95694.0,95686.0,0.001]
[1732803872222,0.3608,95694.0,95682.0,0.0672376]
[1732803872423,0.3668,95694.0,95682.0,0.0672376]
[1732803872819,0.3608,95685.0,95682.0,0.0150056]
[1732803873124,0.3608,95685.0,95680.0,0.001]
[1732803873539,0.3608,95685.0,95682.0,0.001]
[1732803874335,0.3608,95685.0,95678.0,0.24936]
[1732803874523,0.3628,95685.0,95678.0,0.24936]
[1732803874723,0.3628,95685.0,95679.0,0.052234]
[1732803874924,0.3668,95685.0,95679.0,0.052234]
[1732803875739,0.3638,95685.0,95679.0,0.052234]
[1732803876234,0.003,95685.0,95679.0,0.052234]
[1732803876625,0.003,95685.0,95679.0,0.06729839]
[1732803876936,0.3608,95680.0,95679.0,0.01506439]
[1732803877125,0.413034,95680.0,95672.0,0.02090529]
[1732803877329,0.3608,95677.0,95672.0,0.02090529]
[1732803877932,0.003,95685.0,95673.0,0.3608]
[1732803878135,0.003,95685.0,95684.0,0.052231]
[1732803878437,0.003,95685.0,95675.0,0.18861613]
[1732803878438,0.09301179,95692.0,95688.0,0.052229]
[1732803878737,0.09301179,95690.0,95688.0,0.052229]
[1732803879033,0.09354038,95692.0,95688.0,0.052229]
[1732803879226,0.3608,95694.0,95688.0,0.052229]
[1732803880029,0.3608,95694.0,95684.0,0.18861613]
[1732803880229,0.3608,95686.0,95684.0,0.24084713]
[1732803880931,0.3628,95694.0,95684.0,0.24084713]
[1732803880932,0.09354038,95689.0,95684.0,0.25595079]
[1732803881134,0.09354038,95689.0,95685.0,0.05223]
[1732803881433,0.002,95686.0,95685.0,0.05223]
[1732803881643,0.01165491,95686.0,95685.0,0.05223]
[1732803881938,0.00965491,95686.0,95685.0,0.05223]
[1732803882743,0.003,95686.0,95685.0,0.05223]
[1732803883133,0.002,95686.0,95685.0,0.05223]
[1732803883327,0.01061779,95686.0,95685.0,0.05223]
[1732803883941,0.002,95686.0,95685.0,0.05223]
[1732803884138,0.08392259,95697.0,95686.0,0.31352]
[1732803884329,9.728e-05,95700.0,95698.0,0.052224]
[1732803884644,9.728e-05,95700.0,95699.0,0.24228]
[1732803885846,9.728e-05,95700.0,95691.0,0.052227]
[1732803886035,0.3608,95695.0,95692.0,0.23536]
[1732803886343,0.3608,95695.0,95693.0,0.052226]
[1732803886648,0.3608,95695.0,95685.0,0.0229041]
[1732803886649,0.3608,95695.0,95691.0,0.01519334]
[1732803886842,0.3608,95692.0,95685.0,0.0209041]
[1732803887343,0.3608,95692.0,95687.0,0.052229]
[1732803887729,0.3608,95692.0,95689.0,0.052228]
[1732803888141,0.3608,95692.0,95686.0,0.23536]
[1732803888340,0.3608,95692.0,95687.0,0.05223]
[1732803888736,0.3608,95696.0,95686.0,0.23536]
[1732803888940,0.3608,95696.0,95695.0,0.052225]
[1732803889334,9.728e-05,95700.0,95695.0,0.052225]
[1732803889335,9.728e-05,95700.0,95699.0,0.052223]
[1732803890950,9.728e-05,95700.0,95694.0,0.052225]
[1732803891142,9.728e-05,95700.0,95695.0,0.23536]
[1732803891143,0.15629204,95699.0,95695.0,0.23536]
[1732803891440,0.003,95696.0,95695.0,0.052225]
[1732803891842,0.51709204,95699.0,95694.0,0.052226]
[1732803892036,0.51709204,95699.0,95693.0,0.23536]
[1732803892037,0.4858454,95699.0,95693.0,0.23536]
[1732803892242,0.4858454,95699.0,95696.0,0.052225]
[1732803892546,0.3618,95699.0,95696.0,0.052225]
[1732803893339,0.3618,95699.0,95698.0,0.052224]
[1732803894056,0.3648,95699.0,95698.0,0.052224]
[1732803894354,0.3678,95699.0,95698.0,0.052224]
[1732803894947,0.3658,95699.0,95698.0,0.052224]
[1732803895350,0.3658,95699.0,95693.0,0.25057486]
[1732803895654,0.3688,95699.0,95698.0,0.001]
[1732803895953,0.3688,95699.0,95698.0,0.053224]
[1732803896140,0.3668,95699.0,95698.0,0.052224]
[1732803896451,0.3648,95699.0,95698.0,0.052224]
[1732803896749,0.3678,95699.0,95698.0,0.052224]
[1732803897146,0.41859502,95699.0,95698.0,0.052224]
[1732803897348,0.41759502,95699.0,95698.0,0.052224]
[1732803897743,0.3668,95699.0,95698.0,0.052224]
[1732803898346,0.3708,95699.0,95698.0,0.001]
[1732803898741,0.37934057,95699.0,95698.0,0.001]
[1732803898942,0.37134057,95699.0,95695.0,0.07312574]
[1732803899141,0.00854057,95698.0,95695.0,0.07312574]
[1732803899357,0.00854057,95697.0,95695.0,0.07312574]
[1732803899649,0.3628,95699.0,95695.0,0.02090074]
[1732803899844,0.3628,95699.0,95696.0,0.052225]
[1732803900044,0.3628,95699.0,95695.0,0.02090074]
[1732803900440,0.3618,95699.0,95695.0,0.02090074]
[1732803901142,0.3608,95699.0,95695.0,0.02090074]
[1732803901343,0.3638,95699.0,95695.0,0.02090074]
[1732803901651,0.005,95698.0,95697.0,0.052224]
[1732803902046,0.3608,95699.0,95697.0,0.052224]
[1732803902349,0.05079653,95698.0,95697.0,0.052224]
[1732803903953,0.23863661,95698.0,95697.0,0.052224]
[1732803904255,0.24163661,95698.0,95697.0,0.052224]
[1732803904446,0.05379653,95698.0,95697.0,0.052224]
[1732803904755,0.05079653,95698.0,95697.0,0.052224]
[1732803904958,0.05379653,95698.0,95697.0,0.052224]
[1732803905251,0.05379664,95698.0,95697.0,0.052224]
[1732803905654,0.05679664,95698.0,95697.0,0.052224]
[1732803905855,0.05679664,95698.0,95697.0,0.06695765]
[1732803906159,0.006,95698.0,95697.0,0.17158682]
[1732803906359,0.12524536,95701.0,95698.0,0.052224]
[1732803906652,0.18784008,95718.0,95707.0,0.052219]
[1732803906851,0.0507864,95716.0,95701.0,0.23819406]
[1732803907054,0.0507864,95716.0,95715.0,0.052214]
[1732803907254,0.0507864,95716.0,95715.0,0.273454]
[1732803907455,0.23862648,95716.0,95715.0,0.273454]
[1732803907656,0.23862648,95716.0,95698.0,0.052224]
[1732803907657,0.0507864,95716.0,95704.0,0.18597206]
[1732803907851,0.0507864,95716.0,95696.0,0.28992275]
[1732803907852,0.3608,95705.0,95699.0,0.22124]
[1732803908067,0.05079172,95704.0,95699.0,0.22124]
[1732803908250,0.05079172,95704.0,95695.0,0.02090074]
[1732803908451,0.01,95698.0,95697.0,0.00013324]
[1732803908652,0.10239172,95698.0,95697.0,0.00013324]
[1732803909959,0.11092019,95698.0,95697.0,0.00013324]
[1732803910351,0.11592019,95698.0,95697.0,0.00013324]
[1732803910655,0.11592019,95698.0,95681.0,0.66024]
[1732803910656,0.01,95686.0,95678.0,0.02089766]
[1732803910854,0.3608,95679.0,95678.0,0.07313266]
[1732803911062,0.36932847,95679.0,95678.0,0.07313266]
[1732803911555,0.36932847,95679.0,95678.0,0.07325455]
[1732803911762,0.38366517,95679.0,95678.0,0.07325455]
[1732803912756,0.37513511,95679.0,95678.0,0.07325455]
[1732803912957,0.43490179,95679.0,95678.0,0.07325455]
[1732803913663,0.38409455,95679.0,95678.0,0.01906216]
[1732803913851,0.38409455,95679.0,95678.0,0.00612189]
[1732803914055,0.38386548,95679.0,95678.0,0.00612189]
[1732803914763,0.36967134,95679.0,95678.0,0.00612189]
[1732803916762,0.05224,95668.0,95667.0,0.05224]
[1732803916959,0.37967134,95668.0,95667.0,0.05224]
[1732803917161,0.37967134,95668.0,95667.0,0.06698484]
[1732803918666,0.37967134,95668.0,95667.0,0.01474484]
[1732803918868,0.01,95656.0,95637.0,0.02090409]
[1732803919169,0.3608,95642.0,95641.0,0.052255]
[1732803919355,0.3608,95651.0,95650.0,0.05225]
[1732803919768,0.33177718,95651.0,95650.0,0.36598102]
[1732803920071,0.01519991,95672.0,95650.0,0.36598102]
[1732803920072,0.18744713,95667.0,95666.0,0.052241]
[1732803920367,0.18744713,95667.0,95666.0,0.266801]
[1732803921267,0.3608,95676.0,95666.0,0.21456]
[1732803921864,0.3608,95676.0,95665.0,0.052242]
[1732803922171,0.3608,95676.0,95666.0,0.21556]
[1732803922470,0.001,95667.0,95666.0,0.21556]
[1732803922871,0.3608,95676.0,95666.0,0.21556]
[1732803922872,0.3628,95676.0,95666.0,0.21556]
[1732803923366,0.3628,95676.0,95667.0,0.21456]
[1732803923574,0.3638,95676.0,95667.0,0.21456]
[1732803923774,0.3648,95676.0,95667.0,0.21456]
[1732803924471,0.3648,95676.0,95674.0,0.052237]
[1732803925174,0.005,95676.0,95674.0,0.052237]
[1732803925373,8.494e-05,95683.0,95675.0,0.31356]
[1732803925580,0.21880885,95701.0,95686.0,0.18874812]
[1732803925762,0.21880885,95701.0,95699.0,0.052223]
[1732803926067,0.21880885,95701.0,95692.0,0.3608]
[1732803926270,0.01,95709.0,95697.0,0.052224]
[1732803926462,0.05080367,95706.0,95697.0,0.052224]
[1732803926662,0.05080367,95706.0,95692.0,0.3608]
[1732803926663,0.05080367,95706.0,95704.0,0.05222]
[1732803926972,0.04485102,95706.0,95705.0,0.21465829]
[1732803927272,0.12780697,95719.0,95705.0,0.21465829]
[1732803927273,0.12780697,95719.0,95705.0,0.99342986]
[1732803927463,0.12780697,95719.0,95718.0,0.413013]
[1732803927777,0.14794768,95729.0,95727.0,0.052207]
[1732803927962,0.14794768,95729.0,95728.0,0.21456]
[1732803928159,0.00011593,95743.0,95729.0,0.052207]
[1732803928366,0.00011593,95743.0,95741.0,0.0522]
[1732803928563,0.00011593,95743.0,95742.0,0.17335819]
[1732803929872,0.00911593,95743.0,95742.0,0.17435819]
[1732803930075,0.009,95743.0,95742.0,0.27880501]
[1732803930278,0.12634782,95764.0,95763.0,0.052188]
[1732803930467,0.12634782,95764.0,95763.0,0.627508]
[1732803930885,0.12634782,95764.0,95763.0,0.42821422]
[1732803931174,0.12634782,95764.0,95763.0,0.42832738]
[1732803931379,0.12634782,95764.0,95763.0,0.65260738]
[1732803931875,0.13534782,95764.0,95763.0,0.60141938]
[1732803932077,0.13534782,95764.0,95763.0,0.36191316]
[1732803932271,0.13534782,95764.0,95763.0,0.00111316]
[1732803934078,0.50081582,95764.0,95763.0,0.00111316]
[1732803934467,0.44862782,95764.0,95763.0,0.00111316]
[1732803934778,1.63534782,95764.0,95763.0,0.00111316]
[1732803934973,1.65891397,95764.0,95763.0,0.00111316]
[1732803935172,1.97219397,95764.0,95763.0,0.00111316]
[1732803935573,0.47219397,95764.0,95763.0,0.00111316]
[1732803935773,0.46313007,95764.0,95763.0,0.00111316]
[1732803936083,0.47281217,95764.0,95763.0,0.00111316]
[1732803937073,0.15953217,95764.0,95763.0,0.00111316]
[1732803938480,0.47281217,95764.0,95763.0,0.00111316]
[1732803938780,0.15953217,95764.0,95763.0,0.00111316]
[1732803938976,0.14464949,95764.0,95763.0,0.00111316]
[1732803939179,0.14402077,95764.0,95763.0,0.00111316]
[1732803939977,0.01767295,95764.0,95763.0,0.00111316]
[1732803940378,0.01,95750.0,95732.0,0.43876]
[1732803940574,0.3608,95747.0,95744.0,0.052198]
[1732803941077,0.02269498,95746.0,95744.0,0.052198]
[1732803941279,0.02269498,95746.0,95739.0,0.00156656]
[1732803941280,0.01,95740.0,95739.0,0.00156656]
[1732803941480,0.01,95717.0,95708.0,0.01491402]
[1732803941680,0.3608,95711.0,95707.0,0.05378494]
[1732803941881,0.413017,95711.0,95707.0,0.00156694]
[1732803942185,0.3608,95711.0,95707.0,0.00156694]
[1732803942385,0.3608,95711.0,95707.0,0.05378494]
[1732803942587,0.00914821,95710.0,95707.0,0.00156694]
[1732803942779,9.915e-05,95710.0,95709.0,0.052218]
[1732803943083,0.00887438,95710.0,95709.0,0.276378]
[1732803943281,0.00887438,95710.0,95709.0,0.589818]
[1732803943481,0.3608,95733.0,95732.0,0.052205]
[1732803943688,0.36957397,95733.0,95732.0,0.052205]
[1732803943989,0.00877397,95733.0,95732.0,0.052205]
[1732803944477,0.01010766,95746.0,95732.0,0.052205]
[1732803944676,0.02346658,95745.0,95732.0,0.052205]
[1732803944886,0.002,95733.0,95732.0,0.052205]
[1732803945087,0.01102561,95733.0,95732.0,0.06734188]
[1732803945292,0.002,95733.0,95732.0,0.81946188]
[1732803945583,0.002,95733.0,95732.0,0.96561306]
[1732803946576,0.002,95733.0,95732.0,0.92391306]
[1732803946785,0.002,95733.0,95732.0,0.67809688]
[1732803947088,0.002,95733.0,95732.0,0.67805688]
[1732803947385,0.002,95733.0,95720.0,0.24095912]
[1732803947386,0.01,95732.0,95720.0,0.22416]
[1732803947684,0.052209,95725.0,95720.0,0.22416]
[1732803947888,0.00898245,95724.0,95720.0,0.22416]
[1732803948090,0.00898245,95723.0,95717.0,0.01464676]
[1732803948286,0.01,95722.0,95708.0,0.65612]
[1732803948591,0.3608,95715.0,95708.0,0.67135029]
[1732803948786,0.02320927,95714.0,95708.0,0.23259029]
[1732803948986,0.052218,95710.0,95708.0,0.23259029]
[1732803949187,0.02320927,95709.0,95708.0,0.23259029]
[1732803949386,0.03320927,95709.0,95708.0,0.21736]
[1732803949688,0.052218,95708.0,95706.0,7.351e-05]
[1732803949884,0.43066727,95708.0,95706.0,7.351e-05]
[1732803950088,0.47256727,95708.0,95706.0,7.351e-05]
[1732803950681,0.02320927,95707.0,95706.0,7.351e-05]
[1732803953100,0.00898245,95707.0,95706.0,7.351e-05]
[1732803953391,0.00898245,95707.0,95662.0,0.5782]
[1732803953392,0.01,95682.0,95662.0,0.5782]
[1732803953589,0.3608,95680.0,95673.0,0.052237]
[1732803953895,0.3608,95680.0,95662.0,0.3608]
[1732803953896,0.00898245,95679.0,95666.0,0.2174]
[1732803954190,0.3608,95680.0,95678.0,0.052235]
[1732803954382,0.00844148,95679.0,95675.0,9.91e-05]
[1732803954585,0.052235,95677.0,95675.0,9.91e-05]
[1732803954782,0.00832885,95676.0,95675.0,9.91e-05]
[1732803955991,0.052235,95677.0,95675.0,9.91e-05]
[1732803956192,0.052252,95648.0,95641.0,0.052254]
[1732803956382,0.00834175,95647.0,95646.0,0.052252]
[1732803956693,0.00834175,95647.0,95646.0,0.07315826]
[1732803956993,0.3608,95659.0,95653.0,0.052248]
[1732803957194,0.00837026,95658.0,95653.0,0.052248]
[1732803957488,0.06061726,95657.0,95648.0,0.05235576]
[1732803957687,0.06225,95649.0,95648.0,0.00010476]
[1732803957991,0.07062026,95649.0,95648.0,0.00010476]
[1732803958698,0.07062026,95649.0,95628.0,0.3608]
[1732803958699,0.01,95632.0,95610.0,0.2174]
[1732803958988,0.01,95615.0,95609.0,0.36136]
[1732803959182,0.01,95615.0,95602.0,0.21744]
[1732803959183,0.052275,95605.0,95602.0,0.21744]
[1732803959588,0.052275,95605.0,95603.0,0.00013364]
[1732803960497,0.001,95605.0,95604.0,0.02090626]
[1732803960699,0.001,95605.0,95600.0,0.1]
[1732803960994,0.01,95601.0,95600.0,0.1]
[1732803961188,0.062277,95601.0,95600.0,0.1]
[1732803961887,0.06236187,95601.0,95600.0,0.103]
[1732803962290,0.01008487,95601.0,95600.0,0.103]
[1732803962596,8.487e-05,95601.0,95600.0,0.103]
[1732803962794,0.37616187,95601.0,95600.0,0.103]
[1732803962993,0.06236187,95601.0,95600.0,0.103]
[1732803963895,0.37616187,95601.0,95600.0,0.103]
[1732803964094,0.37616187,95601.0,95596.0,9.129e-05]
[1732803964095,0.052279,95597.0,95596.0,9.129e-05]
[1732803964398,0.98468487,95601.0,95572.0,0.07319926]
[1732803964399,0.3138,95600.0,95572.0,0.07319926]
[1732803964597,0.052291,95574.0,95568.0,0.3608]
[1732803964896,0.01,95576.0,95568.0,0.3608]
[1732803964897,0.052294,95569.0,95568.0,0.3608]
[1732803965098,0.3608,95570.0,95555.0,0.052301]
[1732803965395,0.01,95562.0,95556.0,0.02092501]
[1732803965601,0.052299,95561.0,95557.0,7.64e-05]
[1732803966602,0.3608,95558.0,95549.0,0.02092501]
[1732803966799,0.3608,95558.0,95521.0,0.3608]
[1732803966800,0.01,95540.0,95538.0,0.052311]
[1732803967600,0.01,95540.0,95528.0,0.3608]
[1732803967601,0.062311,95540.0,95539.0,0.00011854]
[1732803967801,0.01010039,95540.0,95539.0,0.05242954]
[1732803968199,0.32410039,95540.0,95539.0,0.00011854]
[1732803968502,0.01,95530.0,95529.0,0.3608]
[1732803968689,0.01,95530.0,95514.0,0.3608]
[1732803968690,0.052318,95526.0,95514.0,0.3608]
[1732803968894,0.052319,95525.0,95514.0,0.3608]
[1732803969296,0.01,95520.0,95514.0,0.3608]
[1732803969501,0.052327,95510.0,95508.0,0.00156958]
[1732803969696,0.31412,95509.0,95508.0,0.00169309]
[1732803970292,0.31412,95509.0,95508.0,0.00012351]
[1732803970498,0.61412,95509.0,95491.0,0.3608]
[1732803970698,0.01,95510.0,95491.0,0.3608]
[1732803970699,0.19974812,95510.0,95508.0,0.007]
[1732803970906,0.053327,95509.0,95508.0,0.007]
[1732803971101,0.367447,95509.0,95508.0,0.007]
[1732803971301,0.61512,95509.0,95500.0,0.1]
[1732803971491,0.052331,95502.0,95500.0,0.1]
[1732803971802,0.01,95487.0,95486.0,8.426e-05]
[1732803972195,0.3242,95487.0,95486.0,8.426e-05]
[1732803972496,0.01,95487.0,95486.0,8.426e-05]
[1732803973494,0.01,95487.0,95486.0,0.00208426]
[1732803973909,0.01,95497.0,95495.0,0.052334]
[1732803974202,7.736e-05,95501.0,95500.0,0.052332]
[1732803975513,0.01,95533.0,95507.0,0.052328]
[1732803975801,0.01,95533.0,95530.0,0.3608]
[1732803976000,0.01,95533.0,95528.0,0.3608]
[1732803976208,0.01,95522.0,95521.0,0.05232]
[1732803976510,0.01012693,95522.0,95521.0,0.05232]
[1732803976898,0.01012693,95522.0,95514.0,0.37596233]
[1732803977104,0.01012693,95522.0,95514.0,0.3608]
[1732803977300,0.01012693,95522.0,95513.0,0.052325]
[1732803977507,0.01012693,95522.0,95518.0,0.3608]
[1732803977702,0.01012693,95522.0,95521.0,0.05232]
[1732803978002,0.31408,95521.0,95510.0,0.00157029]
[1732803978205,0.01,95511.0,95510.0,0.00157029]
[1732803978600,0.01,95498.0,95491.0,0.052337]
[1732803979098,0.01,95498.0,95488.0,0.3608]
[1732803979298,0.01,95498.0,95486.0,8.426e-05]
[1732803979505,0.3708,95487.0,95485.0,0.05234]
[1732803979896,0.01,95475.0,95473.0,0.052346]
[1732803980795,0.01,95485.0,95484.0,0.052341]
[1732803981200,0.01,95485.0,95472.0,0.36089884]
[1732803981507,0.01,95485.0,95478.0,0.052344]
[1732803981803,0.01,95485.0,95472.0,0.36089884]
[1732803982007,0.01,95473.0,95472.0,9.884e-05]
[1732803982405,0.32424,95473.0,95472.0,9.884e-05]
[1732803983133,0.01,95473.0,95472.0,0.05244584]
[1732803983806,0.32424,95473.0,95472.0,0.05244584]
[1732803984206,0.33024,95473.0,95472.0,0.05344584]
[1732803984402,0.33924,95473.0,95472.0,0.05344584]
[1732803984907,0.33024,95473.0,95472.0,0.05344584]
[1732803985106,0.33024,95473.0,95472.0,0.00109884]
[1732803985107,0.33824,95473.0,95472.0,0.00109884]
[1732803985411,0.33824,95473.0,95472.0,0.05344584]
[1732803985612,0.33324,95473.0,95472.0,0.05244584]
[1732803985905,0.33824,95473.0,95472.0,0.05244584]
[1732803986504,0.33924,95473.0,95472.0,0.00109884]
[1732803986703,0.391587,95473.0,95472.0,0.00109884]
[1732803987311,0.385587,95473.0,95472.0,9.884e-05]
[1732803987612,0.01,95459.0,95458.0,0.052355]
[1732803987805,0.423154,95459.0,95448.0,0.01490934]
[1732803988004,0.3608,95449.0,95448.0,0.05236]
[1732803988202,0.3608,95449.0,95446.0,0.02095092]
[1732803988203,0.01,95448.0,95447.0,0.01623018]
[1732803988514,0.01,95448.0,95446.0,0.02095092]
[1732803988515,0.37681671,95448.0,95446.0,0.02095092]
[1732803988706,0.37681671,95448.0,95441.0,0.052364]
[1732803988707,0.31432,95447.0,95441.0,0.052364]
[1732803989105,0.06249671,95448.0,95440.0,0.052365]
[1732803989106,0.31432,95446.0,95440.0,0.052365]
[1732803989308,0.01,95436.0,95435.0,9.565e-05]
[1732803989814,0.32436,95436.0,95435.0,9.565e-05]
[1732803990003,0.32436,95436.0,95430.0,0.01]
[1732803990004,0.05237,95431.0,95430.0,0.01]
[1732803990203,0.72753,95431.0,95430.0,0.01]
[1732803990406,0.01,95413.0,95412.0,0.06707633]
[1732803990611,0.01,95413.0,95412.0,0.06074718]
[1732803990811,0.01,95413.0,95412.0,0.05238]
[1732803992308,0.3608,95431.0,95430.0,0.05237]
[1732803992309,0.01,95431.0,95430.0,0.05237]
[1732803992812,0.3608,95441.0,95440.0,0.052365]
[1732803993116,0.01,95446.0,95445.0,0.052362]
[1732803993318,0.01,95462.0,95447.0,0.052361]
[1732803993508,0.3608,95469.0,95447.0,0.413161]
[1732803993509,0.01,95450.0,95447.0,0.413161]
[1732803994213,0.01,95450.0,95447.0,0.052361]
[1732803994610,0.3608,95449.0,95447.0,0.052361]
[1732803995113,0.01,95450.0,95447.0,0.052361]
[1732803995314,0.00513571,95448.0,95447.0,0.052361]
[1732803995918,0.00013571,95448.0,95447.0,0.052361]
[1732803996107,0.01313571,95448.0,95447.0,0.052361]
[1732803996714,0.01813571,95448.0,95447.0,0.052361]
[1732803996914,0.02313571,95448.0,95447.0,0.052361]
[1732803998126,0.02313571,95448.0,95440.0,0.0149633]
[1732803998420,0.02313571,95448.0,95422.0,0.3608]
[1732803998421,0.02413571,95448.0,95447.0,0.001]
[1732803998609,0.38493571,95448.0,95447.0,0.001]
[1732803998813,0.38493571,95448.0,95446.0,0.052361]
[1732803999017,0.38493571,95448.0,95447.0,0.001]
[1732803999317,0.38093571,95448.0,95447.0,0.053361]
[1732803999520,0.38093571,95448.0,95447.0,0.001]
[1732803999521,0.74761571,95448.0,95447.0,0.001]
[1732804000218,0.37093571,95448.0,95447.0,0.053361]
[1732804000519,0.01013571,95448.0,95447.0,0.052361]
[1732804000819,0.01413571,95448.0,95447.0,0.06058591]
[1732804001014,0.01413571,95448.0,95447.0,0.14418591]
[1732804001209,0.00513571,95448.0,95447.0,0.15950357]
[1732804001416,0.01413571,95448.0,95447.0,0.15950357]
[1732804002013,0.02313571,95448.0,95447.0,0.093561]
[1732804002224,0.02313571,95448.0,95447.0,0.052361]
[1732804003010,0.01413571,95448.0,95447.0,0.414161]
[1732804003421,0.01413571,95448.0,95447.0,0.42232157]
[1732804003925,0.00813571,95448.0,95447.0,0.42132157]
[1732804004512,0.00613571,95448.0,95447.0,0.42132157]
[1732804004731,0.01013571,95448.0,95447.0,0.42132157]
[1732804005027,0.00413571,95448.0,95447.0,0.42132157]
[1732804005223,0.01013571,95448.0,95447.0,0.42132157]
[1732804005417,0.01013571,95448.0,95447.0,0.413161]
[1732804007422,0.01013571,95448.0,95447.0,0.052361]
[1732804008525,0.01013571,95448.0,95447.0,0.06056625]
[1732804008733,0.02013571,95448.0,95447.0,0.06056625]